fUSD/lending_fUSD_20251222
["ID","MTS","AMOUNT","RATE_DAILY","PERIOD"]
[399527783,1766439041473,-1170.23,0.000137,2]
[399527784,1766439041483,-1170.23,0.000137,2]
[399527785,1766439041493,-1170.23,0.000137,2]
[399527786,1766439041502,-433.0,0.00013709,2]
[399527787,1766439041513,-175.47,0.00013774,2]
[399527788,1766439041524,-14829.78798575,0.00013901,2]
[399527789,1766439041534,-1353.14,0.00013916,2]
[399527790,1766439041544,-151.0,0.0001396,2]
[399527791,1766439041553,-151.0,0.00013962,2]
[399527792,1766439041563,-151.0,0.00014004,2]
[399527793,1766439041572,-508.62,0.00014091,2]
[399527794,1766439041582,-1353.14,0.0001419,2]
[399527795,1766439041591,-250.0,0.0001427,2]
[399527796,1766439041601,-466.0,0.00014339,2]
[399527797,1766439041610,-390.0,0.00014339,2]
[399527798,1766439041620,-3292.0,0.00014373,2]
[399527799,1766439041629,-3240.0,0.00014375,2]
[399527800,1766439041639,-1353.14,0.00014464,2]
[399527801,1766439041649,-14829.78798575,0.00014501,2]
[399527802,1766439041658,-1600.0,0.00014607,2]
[399527803,1766439041668,-508.62,0.00014704,2]
[399527804,1766439041677,-1353.23386216,0.00014738,2]
[399527805,1766439041687,-152.88,0.0001476,2]
[399527806,1766439041696,-736.0,0.00014974,2]
[399527807,1766439041705,-150.0,0.00015068,2]
[399527808,1766439041718,-881.09,0.00015068,2]
[399527809,1766439041734,-152.98420133,0.00015095,2]
[399527810,1766439041744,-14829.78798575,0.00015101,2]
[399527811,1766439041753,-508.62,0.00015317,2]
[399527812,1766439041763,-14829.78798575,0.000157,2]
[399527813,1766439041775,-4609.0,0.00015811,2]
[399527814,1766439041785,-508.62,0.00015929,2]
[399527815,1766439041795,-1600.0,0.00015935,2]
[399527816,1766439041805,-97593.9892412,0.00016,4]
[399527817,1766439041815,-5524.64,0.00016116,2]
[399527818,1766439041825,-96790.96411421,0.000162,5]
[399527819,1766439041835,-152.88,0.00016236,2]
[399527820,1766439041846,-1434.28602926,0.00016259,2]
[399527821,1766439041855,-14829.78798575,0.000163,2]
[399527822,1766439041865,-591.80368578,0.00016338,2]
[399527823,1766439041875,-10000.0,0.00016338,2]
[399527824,1766439041884,-1088.0,0.00016354,2]
[399527825,1766439041894,-228.0,0.000164,2]
[399527826,1766439041904,-319.0,0.000164,2]
[399527827,1766439041914,-182.0,0.000164,2]
[399527828,1766439041924,-183.8888322,0.000164,2]
[399527829,1766439041934,-500.0,0.00016437,2]
[399527830,1766439041944,-500.0,0.00016437,2]
[399527831,1766439041954,-500.0,0.00016437,2]
[399527832,1766439041964,-150.0,0.00016438,2]
[399527833,1766439041974,-500.0,0.00016438,2]
[399527834,1766439041984,-536.16137235,0.00016438,2]
[399527835,1766439041993,-536.16137235,0.00016438,2]
[399527836,1766439042003,-536.16137235,0.00016438,2]
[399527837,1766439042014,-536.16137235,0.00016438,2]
[399527838,1766439042024,-536.16137235,0.00016438,2]
[399527839,1766439042034,-536.16137235,0.00016438,2]
[399527840,1766439042044,-536.16137235,0.00016438,2]
[399527841,1766439042054,-536.16137235,0.00016438,2]
[399527842,1766439042064,-536.16137235,0.00016438,2]
[399527843,1766439042074,-536.16137235,0.00016438,2]
[399527844,1766439042084,-536.16137235,0.00016438,2]
[399527845,1766439042094,-536.16137235,0.00016438,2]
[399527846,1766439042108,-536.16137235,0.00016438,2]
[399527847,1766439042118,-536.16137235,0.00016438,2]
[399527848,1766439042127,-536.16137235,0.00016438,2]
[399527849,1766439042137,-536.16137235,0.00016438,2]
[399527850,1766439042147,-536.16137235,0.00016438,2]
[399527851,1766439042156,-536.16137235,0.00016438,2]
[399527852,1766439042166,-536.16137235,0.00016438,2]
[399527853,1766439042175,-536.16137235,0.00016438,2]
[399527854,1766439042185,-536.16137235,0.00016438,2]
[399527855,1766439042195,-536.16137235,0.00016438,2]
[399527856,1766439042204,-536.16137235,0.00016438,2]
[399527857,1766439042214,-536.16137235,0.00016438,2]
[399527858,1766439042224,-536.16137235,0.00016438,2]
[399527859,1766439042234,-536.16137235,0.00016438,2]
[399527860,1766439042243,-536.16137235,0.00016438,2]
[399527861,1766439042253,-536.16137235,0.00016438,2]
[399527862,1766439042262,-536.16137235,0.00016438,2]
[399527863,1766439042272,-536.16137235,0.00016438,2]
[399527864,1766439042282,-536.16137235,0.00016438,2]
[399527865,1766439042291,-536.16137235,0.00016438,2]
[399527866,1766439042301,-536.16137235,0.00016438,2]
[399527867,1766439042312,-536.16137235,0.00016438,2]
[399527868,1766439042333,-536.16137235,0.00016438,2]
[399527869,1766439042352,-536.16137235,0.00016438,2]
[399527870,1766439042365,-536.16137235,0.00016438,2]
[399527871,1766439042375,-536.16137235,0.00016438,2]
[399527872,1766439042384,-536.16137235,0.00016438,2]
[399527873,1766439042394,-536.16137235,0.00016438,2]
[399527874,1766439042403,-536.16137235,0.00016438,2]
[399527875,1766439042413,-536.16137235,0.00016438,2]
[399527876,1766439042424,-536.16137235,0.00016438,2]
[399527877,1766439042433,-536.16137235,0.00016438,2]
[399527878,1766439042443,-536.16137235,0.00016438,2]
[399527879,1766439042452,-536.16137235,0.00016438,2]
[399527880,1766439042462,-536.16137235,0.00016438,2]
[399527881,1766439042471,-500.0,0.00016438,2]
[399527882,1766439042481,-500.0,0.00016438,2]
[399527883,1766439042491,-500.0,0.00016438,2]
[399527884,1766439042501,-500.0,0.00016438,2]
[399527885,1766439042510,-500.0,0.00016438,2]
[399527886,1766439042526,-500.0,0.00016438,2]
[399527887,1766439042546,-2787.87494354,0.00016438,2]
[399527888,1766439042558,-2787.87494354,0.00016438,2]
[399527889,1766439042570,-2787.87494354,0.00016438,2]
[399527890,1766439042581,-2787.87494354,0.00016438,2]
[399527891,1766439042592,-2787.87494354,0.00016438,2]
[399527892,1766439042604,-2787.87494354,0.00016438,2]
[399527893,1766439042617,-2787.87494354,0.00016438,2]
[399527894,1766439042628,-2787.87494354,0.00016438,2]
[399527895,1766439042639,-2787.87494354,0.00016438,2]
[399527896,1766439042650,-2787.87494354,0.00016438,2]
[399527897,1766439042661,-2787.87494354,0.00016438,2]
[399527898,1766439042673,-2787.87494354,0.00016438,2]
[399527899,1766439042684,-2787.87494354,0.00016438,2]
[399527900,1766439042694,-2787.87494354,0.00016438,2]
[399527901,1766439042705,-2787.87494354,0.00016438,2]
[399527902,1766439042715,-2787.87494354,0.00016438,2]
[399527903,1766439042728,-2787.87494354,0.00016438,2]
[399527904,1766439042739,-2787.87494354,0.00016438,2]
[399527905,1766439042753,-2787.87494354,0.00016438,2]
[399527906,1766439042765,-2787.87494354,0.00016438,2]
[399527907,1766439042775,-2787.87494354,0.00016438,2]
[399527908,1766439042787,-2787.87494354,0.00016438,2]
[399527909,1766439042799,-2787.87494354,0.00016438,2]
[399527910,1766439042811,-1945.04348786,0.00016438,2]
[399527911,1766439042831,-842.83145568,0.00016438,2]
[399527912,1766439042843,-2787.87494354,0.00016438,2]
[399527913,1766439042853,-2787.87494354,0.00016438,2]
[399527914,1766439042863,-2787.87494354,0.00016438,2]
[399527915,1766439042873,-2787.87494354,0.00016438,2]
[399527916,1766439042884,-2787.87494354,0.00016438,2]
[399527918,1766439042895,-2787.87494354,0.00016438,2]
[399527919,1766439042908,-2787.87494354,0.00016438,2]
[399527920,1766439042918,-2787.87494354,0.00016438,2]
[399527921,1766439042931,-2849.82772006,0.00016438,2]
[399527922,1766439042942,-2849.82772006,0.00016438,2]
[399527923,1766439042955,-2849.82772006,0.00016438,2]
[399527924,1766439042964,-2849.82772006,0.00016438,2]
[399527925,1766439042975,-2849.82772006,0.00016438,2]
[399527926,1766439042987,-2849.82772006,0.00016438,2]
[399527927,1766439042999,-2849.82772006,0.00016438,2]
[399527928,1766439043009,-1355.35992275,0.00016438,2]
[399527929,1766439043021,-294.3711004,0.00016438,2]
[399527930,1766439043032,-1200.09669691,0.00016438,2]
[399527931,1766439043042,-2149.50330309,0.00016438,2]
[399527932,1766439043091,-500.0,0.00011739,2]
[399527933,1766439043100,-329.57102,0.00011958,2]
[399527934,1766439043113,-111.42898,0.00011958,2]
[399527935,1766439043123,-700.32441697,0.00016438,2]
[399527936,1766439043132,-558.96267103,0.00016438,2]
[399527940,1766439043517,-500.0,0.00011739,2]
[399527941,1766439043527,-540.76548521,0.00011766,2]
[399527942,1766439043536,-500.0,0.00011766,2]
[399527943,1766439043546,-250.0,0.00011794,2]
[399527944,1766439043555,-441.0,0.00011986,2]
[399527945,1766439043565,-441.0,0.00012013,2]
[399527946,1766439043574,-441.0,0.0001204,2]
[399527948,1766439043584,-441.0,0.00012068,2]
[399527950,1766439043600,-441.0,0.00012095,2]
[399527951,1766439043610,-441.0,0.00012123,2]
[399527952,1766439043619,-441.0,0.0001215,2]
[399527953,1766439043628,-441.0,0.00012177,2]
[399527954,1766439043638,-4028.51773529,0.00016438,2]
[399527956,1766439043705,-7811.03959368,0.00016438,2]
[399527957,1766439043715,-600.0,0.00016438,2]
[399527958,1766439043724,-881.09,0.00016438,2]
[399527959,1766439043738,-800.0,0.00016438,2]
[399527960,1766439043749,-150.0,0.00016465,2]
[399527961,1766439043758,-253.42007769,0.00016493,2]
[399527962,1766439043770,-2972.2,0.00016526,2]
[399527963,1766439043779,-508.62,0.00016542,2]
[399527964,1766439043790,-358.71934003,0.000166,2]
[399527965,1766439043804,-591.80368577,0.00016629,2]
[399527966,1766439043814,-5704.63,0.00016842,2]
[399527967,1766439043823,-25000.0,0.00016891,3]
[399527968,1766439043833,-25000.0,0.000169,3]
[399527969,1766439043842,-1484.4659734,0.000169,2]
[399527970,1766439043852,-290.73200732,0.000169,2]
[399527971,1766439043861,-211.71595034,0.000169,2]
[399527972,1766439043871,-14829.78798575,0.000169,2]
[399527973,1766439043881,-151.84826967,0.00016915,2]
[399527974,1766439043890,-591.80368577,0.0001692,2]
[399527975,1766439043900,-500.0,0.00016973,2]
[399527976,1766439043910,-500.0,0.00016973,2]
[399527977,1766439043920,-547.95181922,0.00016973,2]
[399527978,1766439043929,-494.48571485,0.00016973,2]
[399527979,1766439043938,-500.0,0.00016973,2]
[399527980,1766439043948,-303.0636033,0.00016973,2]
[399527981,1766439043958,-407.45343911,0.00016973,2]
[399527982,1766439043967,-500.0,0.00016973,2]
[399527983,1766439043977,-500.0,0.00016973,2]
[399527984,1766439043987,-500.0,0.00016973,2]
[399527985,1766439043997,-500.0,0.00016973,2]
[399527986,1766439044007,-500.0,0.00016973,2]
[399527987,1766439044017,-500.0,0.00016973,2]
[399527988,1766439044026,-150.0,0.00016973,2]
[399527989,1766439044035,-600.0,0.00016986,2]
[399527990,1766439044045,-441.51056902,0.0001699,2]
[399527991,1766439044054,-441.51056902,0.0001699,2]
[399527992,1766439044064,-151.0,0.00016997,2]
[399527993,1766439044073,-666.0,0.00016999,2]
[399527994,1766439044082,-300.0,0.00016999,2]
[399527995,1766439044092,-666.0,0.00016999,2]
[399527996,1766439044102,-300.0,0.00016999,2]
[399527997,1766439044111,-666.0,0.00016999,2]
[399527998,1766439044120,-666.0,0.00016999,2]
[399527999,1766439044129,-7427282.52316992,0.00017,2]
[399528000,1766439044141,-394.04408931,0.00017,2]
[399528002,1766439044370,-416.27920025,0.0001118,2]
[399528003,1766439044421,-83.72079975,0.0001118,2]
[399528004,1766439044432,-301.0,0.00011868,2]
[399528005,1766439044442,-32.01120025,0.00012205,2]
[399528006,1766439044455,-408.98879975,0.00012205,2]
[399528007,1766439044465,-441.0,0.00012232,2]
[399528008,1766439044475,-65807.66030298,0.00017,2]
[399528009,1766439044487,-25186.3396482,0.00017,2]
[399528014,1766439046078,-598.34669384,0.00011502,2]
[399528015,1766439046088,-441.0,0.0001226,2]
[399528016,1766439046098,-441.0,0.00012287,2]
[399528017,1766439046108,-976.65330616,0.00017,2]
[399528018,1766439046300,-884.71,0.00017,2]
[399528042,1766440232152,-347.7188,0.00011402,2]
[399528044,1766440232162,-87.57420942,0.00011402,2]
[399528051,1766440232215,-162.42579058,0.00011402,2]
[399528053,1766440232226,-243.0,0.00011402,2]
[399528055,1766440232236,-300.0,0.00012542,2]
[399528057,1766440232246,-250.0,0.00012542,2]
[399528059,1766440232255,-150.0,0.00013697,2]
[399528061,1766440232265,-300.0,0.00013697,2]
[399528063,1766440232274,-1200.0,0.00013697,2]
[399528065,1766440232284,-244.72420942,0.00013698,2]
[399528068,1766440232296,-255.27579058,0.00013698,2]
[399528070,1766440232306,-500.0,0.00013698,2]
[399528072,1766440232315,-500.0,0.00013698,2]
[399528073,1766440232325,-500.0,0.00013698,2]
[399528074,1766440232334,-500.0,0.00013698,2]
[399528075,1766440232343,-500.0,0.00013698,2]
[399528076,1766440232353,-500.0,0.00013698,2]
[399528077,1766440232362,-500.0,0.00013698,2]
[399528078,1766440232372,-500.0,0.00013698,2]
[399528079,1766440232382,-613.05739405,0.00013698,2]
[399528080,1766440232392,-500.0,0.00013698,2]
[399528081,1766440232402,-500.0,0.00013698,2]
[399528082,1766440232411,-500.0,0.00013698,2]
[399528083,1766440232421,-169.7178049,0.00013698,2]
[399528084,1766440232432,-330.2821951,0.00013698,2]
[399528085,1766440232442,-500.0,0.00013698,2]
[399528086,1766440232451,-500.0,0.00013698,2]
[399528087,1766440232461,-500.0,0.00013698,2]
[399528088,1766440232470,-500.0,0.00013698,2]
[399528089,1766440232480,-500.0,0.00013698,2]
[399528090,1766440232489,-500.0,0.00013698,2]
[399528091,1766440232499,-500.0,0.00013698,2]
[399528092,1766440232508,-500.0,0.00013698,2]
[399528093,1766440232517,-500.0,0.00013698,2]
[399528094,1766440232527,-500.0,0.00013698,2]
[399528095,1766440232536,-500.0,0.00013698,2]
[399528096,1766440232545,-500.0,0.00013698,2]
[399528097,1766440232555,-500.0,0.00013698,2]
[399528098,1766440232564,-500.0,0.00013698,2]
[399528099,1766440232573,-500.0,0.00013698,2]
[399528100,1766440232582,-500.0,0.00013698,2]
[399528101,1766440232591,-500.0,0.00013698,2]
[399528102,1766440232600,-500.0,0.00013698,2]
[399528103,1766440232609,-500.0,0.00013698,2]
[399528104,1766440232619,-500.0,0.00013698,2]
[399528105,1766440232628,-500.0,0.00013698,2]
[399528106,1766440232637,-500.0,0.00013698,2]
[399528107,1766440232646,-500.0,0.00013698,2]
[399528108,1766440232656,-1000.0,0.00013699,2]
[399528109,1766440232665,-208.91,0.00014116,2]
[399528110,1766440232674,-141577.72990614,0.00014191,2]
[399528111,1766440232686,-2755.16128012,0.00014191,2]
[399528112,1766440232695,-523.55335711,0.00014201,2]
[399528113,1766440232704,-150.0,0.00014201,2]
[399528114,1766440232713,-9372.8882609,0.00014201,2]
[399528115,1766440232724,-38855.72906294,0.00014201,2]
[399528116,1766440232745,-1490.50948365,0.00014201,2]
[399528117,1766440232757,-2303.22682107,0.00014201,2]
[399528118,1766440232768,-82982.30087,0.00014201,2]
[399528128,1766440238197,-500.0,0.0001419,2]
[399528129,1766440238207,-251.12170848,0.0001419,2]
[399528130,1766440238217,-499.80470346,0.0001419,2]
[399528131,1766440238227,-197.61308345,0.0001419,2]
[399528132,1766440238238,-500.0,0.0001419,2]
[399528133,1766440238248,-177.15256603,0.0001419,2]
[399528134,1766440238258,-500.0,0.0001419,2]
[399528135,1766440238268,-500.0,0.0001419,2]
[399528136,1766440238278,-500.0,0.0001419,2]
[399528137,1766440238287,-205.0652065,0.0001419,2]
[399528138,1766440238297,-500.0,0.0001419,2]
[399528139,1766440238307,-500.0,0.0001419,2]
[399528140,1766440238317,-500.0,0.0001419,2]
[399528141,1766440238327,-500.0,0.0001419,2]
[399528142,1766440238337,-500.0,0.0001419,2]
[399528143,1766440238347,-612.20721558,0.0001419,2]
[399528144,1766440238357,-500.0,0.0001419,2]
[399528145,1766440238366,-500.0,0.0001419,2]
[399528146,1766440238376,-500.0,0.0001419,2]
[399528147,1766440238385,-500.0,0.0001419,2]
[399528148,1766440238395,-500.0,0.0001419,2]
[399528149,1766440238405,-500.0,0.0001419,2]
[399528150,1766440238415,-500.0,0.0001419,2]
[399528151,1766440238425,-500.0,0.0001419,2]
[399528152,1766440238434,-500.0,0.0001419,2]
[399528153,1766440238444,-500.0,0.0001419,2]
[399528154,1766440238454,-500.0,0.0001419,2]
[399528155,1766440238464,-500.0,0.0001419,2]
[399528156,1766440238474,-82972.78720623,0.00014201,2]
[399528157,1766440238487,-5164.11974986,0.00014201,2]
[399528159,1766440238499,-38653.04048461,0.00014201,2]
[399528162,1766440238515,-5626.80000001,0.00014201,2]
[399528164,1766440238526,-1754.81785,0.00014201,2]
[399528167,1766440238545,-711.441254,0.00014201,2]
[399528169,1766440238556,-3001.74636328,0.00014201,2]
[399528197,1766440240335,-7720.65,0.00014201,2]
[399528198,1766440240346,-308.28298535,0.00014201,2]
[399528199,1766440240398,-911.440902,0.00014201,2]
[399528200,1766440240462,-1517.46946338,0.00014201,2]
[399528201,1766440240474,-999.21765633,0.00014201,2]
[399528206,1766440245310,-872.26117996,0.00014201,2]
[399528207,1766440245434,-359.63511905,0.00014201,2]
[399528210,1766440246090,-925.9169098,0.00014201,2]
[399528213,1766440246206,-1994.61084385,0.00014201,2]
[399528214,1766440246216,-2228.52430962,0.00014201,2]
[399528215,1766440246227,-1362.65454814,0.00014201,2]
[399528216,1766440246268,-12613.98367604,0.00014201,2]
[399528217,1766440246500,-912.15864265,0.00014201,2]
[399528218,1766440246795,-1800.00000001,0.00014201,2]
[399528219,1766440484052,999.0,0.00013613,3]
[399528220,1766440485947,166.85,7.35e-05,2]
[399528221,1766440486723,166.85,8.4e-05,2]
[399528222,1766440486777,166.85,9.45e-05,2]
[399528232,1766441431364,-166.85,0.000105,2]
[399528233,1766441431374,-300.0,0.00011025,2]
[399528234,1766441431384,-239.86895085,0.0001155,2]
[399528235,1766441431395,-60.13104915,0.0001155,2]
[399528236,1766441431407,-166.85,0.0001155,2]
[399528237,1766441431417,-166.85,0.000126,2]
[399528238,1766441431427,-1048.1,0.00012753,2]
[399528239,1766441431438,-342.69105261,0.00012877,2]
[399528240,1766441431450,-157.30894739,0.00012877,2]
[399528241,1766441431460,-819.8901603,0.00013066,2]
[399528242,1766441431472,-500.0,0.00013066,2]
[399528243,1766441431483,-452.91224315,0.00013066,2]
[399528244,1766441431494,-533.34640399,0.00013066,2]
[399528245,1766441431505,-265.84703492,0.00013066,2]
[399528246,1766441431516,-668.00415764,0.00013066,2]
[399528247,1766441431525,-250.0,0.00013094,2]
[399528248,1766441431535,-150.0,0.00013135,2]
[399528249,1766441431544,-200.0,0.00013336,2]
[399528250,1766441431553,-794.0758423,0.00013377,2]
[399528251,1766441431562,-244.0,0.00013406,2]
[399528252,1766441431572,-259.0,0.00013443,2]
[399528253,1766441431582,-192.84,0.00013506,2]
[399528254,1766441431591,-202.47,0.00013507,2]
[399528255,1766441431600,-1200.0,0.0001353,2]
[399528256,1766441431610,-300.0,0.00013531,2]
[399528258,1766441431619,-300.0,0.00013531,2]
[399528259,1766441431629,-7493.43904596,0.00013532,2]
[399528261,1766441431638,-458.10918748,0.00013532,2]
[399528263,1766441431647,-226.1991243,0.00013532,2]
[399528265,1766441431656,-151.0,0.00013595,2]
[399528267,1766441431666,-150.0,0.00013596,2]
[399528269,1766441431675,-304.34132775,0.00013597,2]
[399528271,1766441431684,-197.61308345,0.00013597,2]
[399528273,1766441431693,-500.0,0.00013597,2]
[399528275,1766441431702,-624.37910913,0.00013597,2]
[399528277,1766441431711,-177.15256603,0.00013597,2]
[399528278,1766441431721,-500.0,0.00013597,2]
[399528279,1766441431731,-500.0,0.00013597,2]
[399528280,1766441431740,-205.0652065,0.00013597,2]
[399528281,1766441431749,-500.0,0.00013597,2]
[399528282,1766441431758,-500.0,0.00013597,2]
[399528283,1766441431768,-400.98649402,0.00013597,2]
[399528284,1766441431778,-500.0,0.00013597,2]
[399528285,1766441431788,-500.0,0.00013597,2]
[399528286,1766441431797,-500.0,0.00013597,2]
[399528287,1766441431808,-500.0,0.00013597,2]
[399528288,1766441431818,-500.0,0.00013597,2]
[399528289,1766441431827,-500.0,0.00013597,2]
[399528290,1766441431837,-500.0,0.00013597,2]
[399528291,1766441431847,-500.0,0.00013597,2]
[399528292,1766441431856,-500.0,0.00013597,2]
[399528293,1766441431866,-500.0,0.00013597,2]
[399528294,1766441431875,-500.0,0.00013597,2]
[399528295,1766441431884,-500.0,0.00013597,2]
[399528296,1766441431893,-500.0,0.00013597,2]
[399528297,1766441431902,-500.0,0.00013597,2]
[399528298,1766441431911,-500.0,0.00013597,2]
[399528299,1766441431920,-500.0,0.00013597,2]
[399528300,1766441431930,-500.0,0.00013597,2]
[399528301,1766441431939,-500.0,0.00013597,2]
[399528302,1766441431947,-500.0,0.00013597,2]
[399528303,1766441431956,-500.0,0.00013597,2]
[399528304,1766441431967,-500.0,0.00013597,2]
[399528305,1766441431976,-500.0,0.00013597,2]
[399528306,1766441431985,-500.0,0.00013597,2]
[399528307,1766441431994,-500.0,0.00013597,2]
[399528308,1766441432003,-500.0,0.00013597,2]
[399528309,1766441432012,-500.0,0.00013597,2]
[399528310,1766441432021,-511.22072155,0.00013597,2]
[399528311,1766441432030,-18016.78713081,0.00013598,2]
[399528312,1766441432042,-38837.92850358,0.00013598,2]
[399528313,1766441432053,-5265.3160299,0.00013598,2]
[399528314,1766441432064,-652.30130565,0.00013598,2]
[399528315,1766441432074,-15672.15769133,0.00013598,2]
[399528316,1766441432085,-3673.29706504,0.00013598,2]
[399528317,1766441432096,-835.60817854,0.00013598,2]
[399528318,1766441432111,-542.91191829,0.00013598,2]
[399528319,1766441432122,-1023.16132915,0.00013598,2]
[399528321,1766441437371,-88338.76345873,0.00013598,2]
[399528322,1766441437384,-424309.89154528,0.00013598,2]
[399528323,1766441437395,-4170.4440507,0.00013598,2]
[399528324,1766441437441,-559.6792614,0.00013598,2]
[399528325,1766441437453,-716.21548318,0.00013598,2]
[399528332,1766441439507,-574.41800007,0.00013598,2]
[399528333,1766441439731,-300.0,0.00013598,2]
[399528334,1766441439893,-401.95527035,0.00013598,2]
[399528336,1766441439904,-298.56824627,0.00013598,2]
[399528338,1766441439918,-853.2200025,0.00013598,2]
[399528349,1766441442557,-7507.97303453,0.00013598,2]
[399528350,1766441442568,-3891.73401945,0.00013598,2]
[399528351,1766441442616,-2379.12870126,0.00013598,2]
[399528352,1766441442689,-35012.41087581,0.00013598,2]
[399528371,1766441445511,-3294.0,0.00013598,2]
[399528373,1766441445523,-117525.00000287,0.00013598,2]
[399528374,1766441445743,-1251.4000001,0.00013598,2]
[399528375,1766441445804,-785.98369254,0.00013598,2]
[399528378,1766441655825,603.0,0.00022,30]
[399528395,1766442631508,-189.10137661,0.00011916,2]
[399528396,1766442631518,-795.03236508,0.00012,2]
[399528397,1766442631565,-882.31924771,0.00012,2]
[399528398,1766442631577,-534.06656813,0.00012,2]
[399528399,1766442631685,-291.01605699,0.00012,2]
[399528400,1766442631697,-395.53587766,0.00012,2]
[399528401,1766442631709,-1663.6053523,0.00012,2]
[399528402,1766442631720,-257.02,0.00012016,2]
[399528403,1766442631729,-279.1,0.00012042,2]
[399528404,1766442631739,-300.0,0.00012332,2]
[399528405,1766442631751,-1200.0,0.00012332,2]
[399528406,1766442631761,-300.0,0.00012332,2]
[399528407,1766442631771,-150.0,0.00012333,2]
[399528408,1766442631780,-500.0,0.00012333,2]
[399528409,1766442631790,-500.0,0.00012333,2]
[399528410,1766442631800,-500.0,0.00012333,2]
[399528411,1766442631809,-191.22072156,0.00012333,2]
[399528413,1766442631818,-16681.55392614,0.00012334,2]
[399528436,1766442637600,-78906.92607386,0.00012334,2]
[399528437,1766442637610,-7021.19,0.00012372,2]
[399528438,1766442637619,-1652.97,0.00012483,2]
[399528439,1766442637629,-480.4112,0.00012653,2]
[399528440,1766442637639,-961.5,0.00012731,2]
[399528441,1766442637648,-294.51,0.00012753,2]
[399528442,1766442637658,-1600.0,0.00012753,2]
[399528443,1766442637668,-302.31,0.00012849,2]
[399528444,1766442637683,-8227.07393993,0.00012865,2]
[399528445,1766442637692,-11990.05,0.00012886,2]
[399528446,1766442637702,-5175.6,0.00012933,2]
[399528447,1766442637711,-14943.44,0.00012934,2]
[399528448,1766442637723,-150.99,0.00012934,2]
[399528449,1766442637732,-9999.99,0.00012934,2]
[399528450,1766442637742,-421.52139565,0.00012959,2]
[399528451,1766442637753,-2500.0,0.0001296,2]
[399528452,1766442637762,-500.0,0.00012965,2]
[399528453,1766442637772,-500.0,0.00012989,2]
[399528454,1766442637782,-287.06537639,0.00012989,2]
[399528455,1766442637792,-213.03892943,0.00012989,2]
[399528456,1766442637802,-103874.56911945,0.0001299,2]
[399528457,1766442637811,-1904.73061634,0.00013,2]
[399528458,1766442637820,-150.7994162,0.00013023,2]
[399528459,1766442638149,-27600.35808719,0.00013023,2]
[399528460,1766442638170,-203.45,0.00013033,2]
[399528461,1766442638180,-500.0,0.00013041,2]
[399528462,1766442638191,-5328.93897617,0.0001305,2]
[399528463,1766442638200,-151.0,0.00013057,2]
[399528464,1766442638210,-151.0,0.00013057,2]
[399528465,1766442638223,-150.0,0.00013059,2]
[399528466,1766442638232,-372646.19855473,0.0001306,2]
[399528467,1766442638244,-85921.99999894,0.0001306,2]
[399528468,1766442638260,-6804.74044857,0.0001306,2]
[399528469,1766442638279,-4219.49174464,0.0001306,2]
[399528472,1766442639832,-320.80564374,0.0001306,2]
[399528485,1766442640113,-856.44542078,0.0001306,2]
[399528486,1766442640125,-285.4699995,0.0001306,2]
[399528514,1766442645610,-692.43477239,0.0001306,2]
[399528515,1766442645622,-9268.94033517,0.0001306,2]
[399528516,1766442645634,-83355.74826646,0.0001306,2]
[399528517,1766442645675,-2870.48548132,0.0001306,2]
[399528519,1766442645903,-883.25,0.0001306,2]
[399528577,1766443240325,999.0,0.00012336,3]
[399528585,1766443831696,-259.39015822,0.00011766,2]
[399528586,1766443831760,-729.51283028,0.00011766,2]
[399528587,1766443831771,-632.7324115,0.00011766,2]
[399528588,1766443831780,-247.0,0.00011825,2]
[399528589,1766443831789,-1500.0,0.00011825,2]
[399528590,1766443831798,-3240.0,0.00011881,2]